fUST/lending_fUST_20240819
["ID","MTS","AMOUNT","RATE_DAILY","PERIOD"]
[335289556,1724074247182,-500.0,0.00016438,2]
[335289557,1724074247191,-500.0,0.00016438,2]
[335289558,1724074247201,-500.0,0.00016438,2]
[335289559,1724074247211,-207.19878455,0.00016438,2]
[335289560,1724074247221,-500.0,0.00016438,2]
[335289561,1724074247230,-500.0,0.00016438,2]
[335289562,1724074247240,-292.21122315,0.00016438,2]
[335289563,1724074247250,-500.0,0.00016438,2]
[335289564,1724074247260,-500.0,0.00016438,2]
[335289565,1724074247270,-500.0,0.00016438,2]
[335289566,1724074247279,-500.0,0.00016438,2]
[335289567,1724074247289,-500.0,0.00016438,2]
[335289568,1724074247299,-500.0,0.00016438,2]
[335289569,1724074247308,-500.0,0.00016438,2]
[335289570,1724074247319,-500.0,0.00016438,2]
[335289571,1724074247329,-500.0,0.00016438,2]
[335289572,1724074247339,-500.0,0.00016438,2]
[335289573,1724074247352,-500.0,0.00016438,2]
[335289574,1724074247362,-500.0,0.00016438,2]
[335289575,1724074247372,-609.60071569,0.00016438,2]
[335289576,1724074247381,-500.0,0.00016438,2]
[335289577,1724074247391,-518.12874381,0.00016438,2]
[335289578,1724074247401,-594.87,0.00016438,2]
[335289579,1724074247411,-500.0,0.00016438,2]
[335289580,1724074247420,-500.0,0.00016438,2]
[335289581,1724074247430,-500.0,0.00016438,2]
[335289582,1724074247440,-500.0,0.00016438,2]
[335289583,1724074247450,-500.0,0.00016438,2]
[335289584,1724074247460,-500.0,0.00016438,2]
[335289585,1724074247469,-500.0,0.00016438,2]
[335289586,1724074247479,-500.0,0.00016438,2]
[335289587,1724074247489,-510.08225344,0.00016438,2]
[335289588,1724074247498,-500.0,0.00016438,2]
[335289589,1724074247508,-500.0,0.00016438,2]
[335289590,1724074247518,-500.0,0.00016438,2]
[335289591,1724074247529,-500.0,0.00016438,2]
[335289592,1724074247538,-500.0,0.00016438,2]
[335289593,1724074247548,-500.0,0.00016438,2]
[335289594,1724074247558,-500.0,0.00016438,2]
[335289595,1724074247568,-500.0,0.00016438,2]
[335289596,1724074247577,-1328.79,0.00016438,2]
[335289597,1724074247587,-500.0,0.00016438,2]
[335289598,1724074247599,-500.0,0.00016438,2]
[335289599,1724074247609,-500.0,0.00016438,2]
[335289600,1724074247619,-500.0,0.00016438,2]
[335289601,1724074247630,-495.94265711,0.00016438,2]
[335289602,1724074247639,-500.0,0.00016438,2]
[335289603,1724074247650,-500.0,0.00016438,2]
[335289604,1724074247659,-500.0,0.00016438,2]
[335289605,1724074247669,-500.0,0.00016438,2]
[335289606,1724074247679,-500.0,0.00016438,2]
[335289607,1724074247688,-500.0,0.00016438,2]
[335289608,1724074247698,-500.0,0.00016438,2]
[335289609,1724074247708,-500.0,0.00016438,2]
[335289610,1724074247718,-500.0,0.00016438,2]
[335289611,1724074247727,-500.0,0.00016438,2]
[335289612,1724074247737,-500.0,0.00016438,2]
[335289613,1724074247747,-500.0,0.00016438,2]
[335289614,1724074247756,-500.0,0.00016438,2]
[335289615,1724074247767,-500.0,0.00016438,2]
[335289616,1724074247778,-500.0,0.00016438,2]
[335289617,1724074247789,-500.0,0.00016438,2]
[335289618,1724074247798,-500.0,0.00016438,2]
[335289619,1724074247808,-500.0,0.00016438,2]
[335289620,1724074247818,-500.0,0.00016438,2]
[335289621,1724074247828,-500.0,0.00016438,2]
[335289622,1724074247838,-500.0,0.00016438,2]
[335289623,1724074247850,-500.0,0.00016438,2]
[335289624,1724074247860,-500.0,0.00016438,2]
[335289625,1724074247870,-527.82,0.00016438,2]
[335289626,1724074247881,-500.0,0.00016438,2]
[335289627,1724074247891,-500.0,0.00016438,2]
[335289628,1724074247901,-500.0,0.00016438,2]
[335289629,1724074247915,-250.4936999,0.00016438,2]
[335289630,1724074247925,-500.0,0.00016438,2]
[335289631,1724074247935,-500.0,0.00016438,2]
[335289632,1724074247945,-500.0,0.00016438,2]
[335289633,1724074247955,-500.0,0.00016438,2]
[335289634,1724074247965,-500.0,0.00016438,2]
[335289635,1724074247976,-500.0,0.00016438,2]
[335289636,1724074247988,-500.0,0.00016438,2]
[335289637,1724074247998,-500.0,0.00016438,2]
[335289638,1724074248008,-500.0,0.00016438,2]
[335289639,1724074248017,-500.0,0.00016438,2]
[335289640,1724074248027,-500.0,0.00016438,2]
[335289641,1724074248038,-500.0,0.00016438,2]
[335289642,1724074248048,-500.0,0.00016438,2]
[335289643,1724074248058,-500.0,0.00016438,2]
[335289644,1724074248068,-500.0,0.00016438,2]
[335289645,1724074248078,-173.016219,0.00016438,2]
[335289646,1724074248088,-500.0,0.00016438,2]
[335289647,1724074248100,-500.0,0.00016438,2]
[335289648,1724074248110,-500.0,0.00016438,2]
[335289649,1724074248120,-381.99140853,0.00016438,2]
[335289650,1724074248130,-500.0,0.00016438,2]
[335289651,1724074248140,-500.0,0.00016438,2]
[335289652,1724074248150,-500.0,0.00016438,2]
[335289653,1724074248159,-1354.77,0.00016438,2]
[335289654,1724074248169,-500.0,0.00016438,2]
[335289655,1724074248178,-500.0,0.00016438,2]
[335289656,1724074248188,-500.0,0.00016438,2]
[335289657,1724074248197,-500.0,0.00016438,2]
[335289658,1724074248207,-500.0,0.00016438,2]
[335289659,1724074248216,-500.0,0.00016438,2]
[335289660,1724074248226,-500.0,0.00016438,2]
[335289661,1724074248235,-500.0,0.00016438,2]
[335289662,1724074248245,-500.0,0.00016438,2]
[335289663,1724074248255,-359.22238801,0.00016438,2]
[335289664,1724074248265,-500.0,0.00016438,2]
[335289665,1724074248275,-500.0,0.00016438,2]
[335289666,1724074248285,-500.0,0.00016438,2]
[335289667,1724074248294,-500.0,0.00016438,2]
[335289668,1724074248304,-500.0,0.00016438,2]
[335289669,1724074248314,-500.0,0.00016438,2]
[335289670,1724074248323,-500.0,0.00016438,2]
[335289671,1724074248333,-500.0,0.00016438,2]
[335289672,1724074248343,-500.0,0.00016438,2]
[335289673,1724074248356,-500.0,0.00016438,2]
[335289674,1724074248366,-500.0,0.00016438,2]
[335289675,1724074248376,-500.0,0.00016438,2]
[335289676,1724074248386,-500.0,0.00016438,2]
[335289677,1724074248396,-500.0,0.00016438,2]
[335289678,1724074248406,-500.0,0.00016438,2]
[335289679,1724074248416,-500.0,0.00016438,2]
[335289680,1724074248425,-500.0,0.00016438,2]
[335289681,1724074248435,-500.0,0.00016438,2]
[335289682,1724074248446,-500.0,0.00016438,2]
[335289683,1724074248457,-500.0,0.00016438,2]
[335289684,1724074248467,-500.0,0.00016438,2]
[335289685,1724074248476,-500.0,0.00016438,2]
[335289686,1724074248486,-500.0,0.00016438,2]
[335289687,1724074248496,-500.0,0.00016438,2]
[335289688,1724074248505,-500.0,0.00016438,2]
[335289689,1724074248515,-500.0,0.00016438,2]
[335289690,1724074248524,-500.0,0.00016438,2]
[335289691,1724074248534,-500.0,0.00016438,2]
[335289692,1724074248544,-500.0,0.00016438,2]
[335289693,1724074248555,-500.0,0.00016438,2]
[335289694,1724074248564,-500.0,0.00016438,2]
[335289695,1724074248574,-500.0,0.00016438,2]
[335289696,1724074248584,-500.0,0.00016438,2]
[335289697,1724074248593,-500.0,0.00016438,2]
[335289698,1724074248607,-500.0,0.00016438,2]
[335289699,1724074248617,-500.0,0.00016438,2]
[335289700,1724074248626,-500.0,0.00016438,2]
[335289701,1724074248636,-500.0,0.00016438,2]
[335289702,1724074248646,-508.38791444,0.00016438,2]
[335289703,1724074248657,-500.0,0.00016438,2]
[335289704,1724074248667,-503.38275484,0.00016438,2]
[335289705,1724074248676,-500.0,0.00016438,2]
[335289706,1724074248686,-500.0,0.00016438,2]
[335289707,1724074248695,-500.0,0.00016438,2]
[335289708,1724074248704,-500.0,0.00016438,2]
[335289709,1724074248714,-500.0,0.00016438,2]
[335289710,1724074248723,-500.0,0.00016438,2]
[335289711,1724074248733,-500.0,0.00016438,2]
[335289712,1724074248742,-500.0,0.00016438,2]
[335289713,1724074248753,-710.34,0.00016438,2]
[335289714,1724074248763,-500.0,0.00016438,2]
[335289715,1724074248772,-500.0,0.00016438,2]
[335289716,1724074248783,-500.0,0.00016438,2]
[335289717,1724074248794,-500.0,0.00016438,2]
[335289718,1724074248803,-500.0,0.00016438,2]
[335289719,1724074248814,-501.55252938,0.00016438,2]
[335289720,1724074248824,-500.0,0.00016438,2]
[335289721,1724074248836,-500.0,0.00016438,2]
[335289722,1724074248846,-1634.71,0.00016438,2]
[335289723,1724074249035,-500.0,0.00016438,2]
[335289724,1724074249046,-500.0,0.00016438,2]
[335289725,1724074249057,-502.48382303,0.00016438,2]
[335289726,1724074249068,-500.0,0.00016438,2]
[335289727,1724074249077,-500.0,0.00016438,2]
[335289728,1724074249087,-500.0,0.00016438,2]
[335289729,1724074249097,-500.0,0.00016438,2]
[335289730,1724074249108,-500.0,0.00016438,2]
[335289731,1724074249119,-500.0,0.00016438,2]
[335289732,1724074249128,-500.0,0.00016438,2]
[335289733,1724074249138,-500.0,0.00016438,2]
[335289734,1724074249149,-500.0,0.00016438,2]
[335289735,1724074249161,-500.0,0.00016438,2]
[335289736,1724074249171,-500.0,0.00016438,2]
[335289737,1724074249181,-500.0,0.00016438,2]
[335289738,1724074249190,-500.0,0.00016438,2]
[335289739,1724074249200,-500.0,0.00016438,2]
[335289740,1724074249209,-500.0,0.00016438,2]
[335289741,1724074249220,-500.0,0.00016438,2]
[335289742,1724074249230,-593.19815017,0.00016438,2]
[335289743,1724074249239,-500.0,0.00016438,2]
[335289744,1724074249249,-500.0,0.00016438,2]
[335289745,1724074249260,-500.0,0.00016438,2]
[335289746,1724074249270,-500.0,0.00016438,2]
[335289747,1724074249279,-500.0,0.00016438,2]
[335289748,1724074249289,-500.0,0.00016438,2]
[335289749,1724074249299,-500.0,0.00016438,2]
[335289750,1724074249308,-500.0,0.00016438,2]
[335289751,1724074249318,-226.34062903,0.00016438,2]
[335289771,1724075351279,-244.01680632,9.415e-05,2]
[335289772,1724075351301,-244.01680632,9.51e-05,2]
[335289773,1724075351322,-3427.989273,0.00010298,2]
[335289774,1724075351345,-250.0,0.00011034,2]
[335289775,1724075351367,-250.0,0.00011064,2]
[335289776,1724075351389,-250.0,0.00011095,2]
[335289777,1724075351412,-250.0,0.00011125,2]
[335289778,1724075351435,-250.0,0.00011155,2]
[335289779,1724075351458,-250.0,0.00011185,2]
[335289780,1724075351527,-250.0,0.00011216,2]
[335289781,1724075351622,-300.0,0.00011218,2]
[335289782,1724075351719,-300.0,0.00011218,2]
[335289783,1724075351743,-15962.56719259,0.00011219,2]
[335289894,1724075438629,-273.37336231,9.801e-05,2]
[335289895,1724075438639,-273.37336231,9.9e-05,2]
[335289896,1724075438656,-3749.5768753,0.00010545,2]
[335289897,1724075438668,-166.687614,0.0001076,2]
[335289898,1724075438678,-166.687614,0.00010769,2]
[335289899,1724075438687,-166.687614,0.00010778,2]
[335289900,1724075438697,-166.687614,0.00010787,2]
[335289901,1724075438709,-166.687614,0.00010796,2]
[335289902,1724075438723,-166.687614,0.00010805,2]
[335289903,1724075438733,-166.687614,0.00010814,2]
[335289904,1724075438743,-8937.43280741,0.00011219,2]
[335289905,1724075438753,-218.16591675,0.00011219,2]
[335289906,1724075438763,-16318.75386369,0.00011219,2]
[335289907,1724075438773,-165.32259534,0.00011219,2]
[335289908,1724075438785,-16318.75386369,0.00011219,2]
[335289909,1724075438799,-300.0,0.00011244,2]
[335289910,1724075438808,-300.0,0.00011245,2]
[335289911,1724075438817,-250.0,0.00011246,2]
[335289912,1724075438827,-250.0,0.00011276,2]
[335289913,1724075438840,-250.0,0.00011307,2]
[335289914,1724075438850,-250.0,0.00011337,2]
[335289915,1724075438860,-250.0,0.00011367,2]
[335289916,1724075438875,-250.0,0.00011397,2]
[335289917,1724075438884,-250.0,0.00011428,2]
[335289918,1724075438894,-250.0,0.00011458,2]
[335289919,1724075438903,-250.0,0.00011488,2]
[335289920,1724075438913,-250.0,0.00011518,2]
[335289921,1724075438922,-250.0,0.00011549,2]
[335289922,1724075438932,-250.0,0.00011579,2]
[335289923,1724075438942,-250.0,0.00011609,2]
[335289924,1724075438951,-4801.09046593,0.00012163,2]
[335289925,1724075438963,-420.0,0.00012353,2]
[335289926,1724075438973,-1613.45959463,0.00012356,2]
[335289927,1724075438983,-420.0,0.00012369,2]
[335289928,1724075438992,-2282.40908483,0.00012551,3]
[335289929,1724075439002,-850.86713135,0.00012629,2]
[335289930,1724075439012,-600.88577429,0.00012886,2]
[335289931,1724075439021,-509.32411833,0.00012898,2]
[335289932,1724075439031,-728.79489661,0.00012898,2]
[335289933,1724075439040,-6163.4829318,0.000129,2]
[335289934,1724075439050,-282.59028044,0.000129,2]
[335289935,1724075439060,-780.05358786,0.00012934,2]
[335289936,1724075439069,-780.05358786,0.00012934,2]
[335289937,1724075439078,-190.07446844,0.00012934,2]
[335289938,1724075439087,-493.30764145,0.00012971,2]
[335289939,1724075439097,-196.81150092,0.00012971,2]
[335289940,1724075439106,-196.81150092,0.00012971,2]
[335289941,1724075439115,-190.07446844,0.00012971,2]
[335289942,1724075439125,-210.23989812,0.00012985,2]
[335289943,1724075439134,-9659.27545044,0.00012989,2]
[335289944,1724075439143,-160.44466579,0.00012989,2]
[335289945,1724075439153,-7013.41255393,0.00012999,2]
[335289946,1724075439162,-862.44048895,0.00013,2]
[335289947,1724075439172,-1500.0,0.00013051,2]
[335289948,1724075439181,-1639.6927656,0.00013477,2]
[335289949,1724075439191,-2142.81108391,0.00013477,2]
[335289950,1724075439200,-188.49819575,0.00013497,2]
[335289951,1724075439211,-156.85654909,0.00013497,2]
[335289952,1724075439221,-569.55611374,0.00013497,2]
[335289953,1724075439230,-2126.42374328,0.00013497,2]
[335289954,1724075439240,-601.88445386,0.00013497,2]
[335289955,1724075439250,-2712.58332809,0.00013497,2]
[335289956,1724075439260,-157.09608348,0.00013497,2]
[335289957,1724075439269,-587.0,0.00013571,2]
[335289958,1724075439279,-44096.6607307,0.00013586,2]
[335289959,1724075439291,-154.69833824,0.00013596,2]
[335289960,1724075439302,-154.89923821,0.00013596,2]
[335289961,1724075439312,-154.71377951,0.00013596,4]
[335289962,1724075439322,-154.90265982,0.00013596,2]
[335289963,1724075439332,-174.83511409,0.00013596,2]
[335289964,1724075439341,-342.65845262,0.00013596,2]
[335289965,1724075439351,-156.30965679,0.00013596,2]
[335289966,1724075439360,-154.69833824,0.00013596,2]
[335289967,1724075439369,-232.76005498,0.00013596,2]
[335289968,1724075439379,-688.676981,0.00013596,2]
[335289969,1724075439388,-180.79435253,0.00013596,2]
[335289970,1724075439397,-457.46743484,0.00013596,2]
[335289971,1724075439407,-291.19997432,0.00013596,2]
[335289972,1724075439417,-155.13714738,0.00013597,2]
[335289973,1724075439426,-154.69833824,0.00013597,2]
[335289974,1724075439436,-404.43330921,0.00013597,2]
[335289975,1724075439445,-155.03739121,0.00013597,2]
[335289976,1724075439454,-824.33009363,0.00013597,2]
[335289977,1724075439465,-817.51538182,0.00013599,2]
[335289978,1724075439474,-587.0,0.00013606,2]
[335289979,1724075439483,-665.46668942,0.00013688,2]
[335289980,1724075439493,-933.80144992,0.00013688,2]
[335289981,1724075439503,-320.27103328,0.00013697,2]
[335289982,1724075439516,-500.0,0.00013698,2]
[335289983,1724075439526,-216.22567486,0.00013698,2]
[335289984,1724075439536,-500.0,0.00013698,2]
[335289985,1724075439546,-220.19810887,0.00013698,2]
[335289986,1724075439556,-500.0,0.00013698,2]
[335289987,1724075439565,-500.0,0.00013698,2]
[335289988,1724075439575,-533.45619054,0.00013698,2]
[335289989,1724075439586,-511.067454,0.00013699,2]
[335289990,1724075439596,-2411.324998,0.00013699,2]
[335289991,1724075439606,-373.94122105,0.00013699,2]
[335289992,1724075439616,-218.71325915,0.00013699,2]
[335289993,1724075439626,-350.0,0.00013699,2]
[335289994,1724075439635,-500.0,0.00013699,2]
[335289995,1724075439645,-500.0,0.00013699,2]
[335289996,1724075439655,-500.0,0.00013699,2]
[335289997,1724075439665,-500.0,0.00013699,2]
[335289998,1724075439675,-500.0,0.00013699,2]
[335289999,1724075439686,-500.0,0.00013699,2]
[335290000,1724075439695,-500.0,0.00013699,2]
[335290001,1724075439705,-500.0,0.00013699,2]
[335290002,1724075439715,-500.0,0.00013699,2]
[335290003,1724075439725,-181.98661871,0.00013699,2]
[335290004,1724075439734,-500.0,0.00013699,2]
[335290005,1724075439744,-500.0,0.00013699,2]
[335290006,1724075439754,-500.0,0.00013699,2]
[335290007,1724075439764,-500.0,0.00013699,2]
[335290008,1724075439773,-500.0,0.00013699,2]
[335290009,1724075439783,-500.0,0.00013699,2]
[335290010,1724075439793,-500.0,0.00013699,2]
[335290011,1724075439803,-500.0,0.00013699,2]
[335290012,1724075439813,-500.0,0.00013699,2]
[335290013,1724075439822,-500.0,0.00013699,2]
[335290014,1724075439832,-500.0,0.00013699,2]
[335290015,1724075439841,-500.0,0.00013699,2]
[335290016,1724075439851,-500.0,0.00013699,2]
[335290017,1724075439861,-500.0,0.00013699,2]
[335290018,1724075439871,-500.0,0.00013699,2]
[335290020,1724075439880,-500.0,0.00013699,2]
[335290021,1724075439890,-500.0,0.00013699,2]
[335290022,1724075439900,-500.0,0.00013699,2]
[335290023,1724075439910,-500.0,0.00013699,2]
[335290024,1724075439919,-204.13503741,0.00013699,2]
[335290025,1724075439929,-616.37687552,0.00013699,2]
[335290026,1724075439938,-500.0,0.00013699,2]
[335290027,1724075439947,-500.0,0.00013699,2]
[335290028,1724075439959,-176.19573101,0.00013699,2]
[335290029,1724075439968,-500.0,0.00013699,2]
[335290030,1724075439977,-500.0,0.00013699,2]
[335290031,1724075439987,-500.0,0.00013699,2]
[335290032,1724075439996,-241.52815652,0.00013699,2]
[335290033,1724075440006,-500.0,0.00013699,2]
[335290034,1724075440016,-500.0,0.00013699,2]
[335290035,1724075440026,-500.0,0.00013699,2]
[335290036,1724075440035,-500.0,0.00013699,2]
[335290038,1724075440045,-593.75,0.00013699,2]
[335290040,1724075440055,-500.0,0.00013699,2]
[335290041,1724075440064,-500.0,0.00013699,2]
[335290042,1724075440074,-500.0,0.00013699,2]
[335290043,1724075440083,-500.0,0.00013699,2]
[335290044,1724075440093,-500.0,0.00013699,2]
[335290045,1724075440102,-500.0,0.00013699,2]
[335290046,1724075440112,-500.0,0.00013699,2]
[335290047,1724075440122,-44096.6607307,0.00013961,2]
[335290048,1724075440133,-265.37417561,0.00013971,2]
[335290049,1724075440142,-154.69833824,0.00014225,2]
[335290050,1724075440153,-495.14476956,0.00014245,2]
[335290051,1724075440162,-334.352799,0.00014247,2]
[335290052,1724075440171,-158.751828,0.00014247,2]
[335290053,1724075440181,-200.0,0.0001435,2]
[335290054,1724075440190,-200.0,0.0001435,2]
[335290055,1724075440200,-178.12087349,0.0001435,2]
[335290056,1724075440211,-192.0011942,0.00014429,2]
[335290057,1724075440220,-304.17400797,0.00014519,2]
[335290058,1724075440229,-154.9255035,0.00014519,2]
[335290059,1724075440239,-222.69133734,0.000149,2]
[335290060,1724075440248,-823.0,0.00014909,2]
[335290061,1724075440258,-823.0,0.00014967,2]
[335290062,1724075440268,-132289.982192,0.0001499,2]
[335290063,1724075440278,-5244.78933856,0.00015,2]
[335290064,1724075440287,-160865.0,0.00015,2]
[335290065,1724075440301,-162.161317,0.000153,2]
[335290066,1724075440310,-150.112233,0.000156,2]
[335290067,1724075440320,-574.18002641,0.0001562,2]
[335290069,1724075440330,-400.0,0.0001572,2]
[335290071,1724075440339,-400.0,0.0001572,2]
[335290072,1724075440349,-417.550121,0.0001589,2]
[335290073,1724075440358,-150.112233,0.000159,2]
[335290074,1724075440594,-953.38755458,0.00015904,2]
[335290075,1724075440604,-191.4651378,0.00016,2]
[335290076,1724075440613,-2000.0,0.00016,2]
[335290077,1724075440623,-2000.0,0.00016,5]
[335290078,1724075440632,-6163.48293177,0.00016043,2]
[335290079,1724075440641,-167.33482158,0.00016122,2]
[335290080,1724075440651,-5328.69624806,0.00016168,2]
[335290081,1724075440661,-150.112233,0.000162,2]
[335290082,1724075440671,-2063.69086687,0.000163,2]
[335290083,1724075440681,-88193.3214615,0.00016328,2]
[335290084,1724075440690,-4044.3193496,0.00016338,2]
[335290085,1724075440700,-40000.0,0.00016338,2]
[335290086,1724075440710,-49353.30020105,0.00016338,2]
[335290087,1724075440720,-150.0,0.00016345,2]
[335290088,1724075440729,-1152.0,0.0001638,2]
[335290089,1724075440739,-7464.10932381,0.000164,2]
[335290090,1724075440748,-227.88054601,0.000164,2]
[335290091,1724075440758,-500.0,0.00016438,2]
[335290092,1724075440767,-515.01812454,0.00016438,2]
[335290093,1724075440776,-500.0,0.00016438,2]
[335290094,1724075440786,-500.0,0.00016438,2]
[335290095,1724075440806,-500.0,0.00016438,2]
[335290096,1724075440816,-500.0,0.00016438,2]
[335290097,1724075440826,-500.0,0.00016438,2]
[335290098,1724075440835,-500.0,0.00016438,2]
[335290099,1724075440845,-500.0,0.00016438,2]
[335290100,1724075440855,-441.85528238,0.00016438,2]
[335290101,1724075440865,-208.95110547,0.00016438,2]
[335290102,1724075440875,-500.0,0.00016438,2]
[335290103,1724075440885,-500.0,0.00016438,2]
[335290104,1724075440895,-500.0,0.00016438,2]
[335290105,1724075440904,-405.30195188,0.00016438,2]
[335290106,1724075440914,-500.0,0.00016438,2]
[335290107,1724075440924,-500.0,0.00016438,2]
[335290108,1724075440934,-500.0,0.00016438,2]
[335290109,1724075440944,-500.0,0.00016438,2]
[335290110,1724075440953,-500.0,0.00016438,2]
[335290111,1724075440964,-500.0,0.00016438,2]
[335290112,1724075440974,-500.0,0.00016438,2]
[335290113,1724075440984,-510.76971986,0.00016438,2]
[335290114,1724075440994,-500.88110826,0.00016438,2]
[335290115,1724075441004,-500.0,0.00016438,2]
[335290116,1724075441014,-500.0,0.00016438,2]
[335290117,1724075441024,-500.0,0.00016438,2]
[335290118,1724075441034,-516.32103639,0.00016438,2]
[335290119,1724075441044,-500.0,0.00016438,2]
[335290120,1724075441055,-500.0,0.00016438,2]
[335290121,1724075441064,-502.85140263,0.00016438,2]
[335290122,1724075441074,-501.21026235,0.00016438,2]
[335290123,1724075441085,-500.0,0.00016438,2]
[335290124,1724075441094,-500.0,0.00016438,2]
[335290125,1724075441104,-500.0,0.00016438,2]
[335290126,1724075441114,-528.07046482,0.00016438,2]
[335290127,1724075441124,-500.0,0.00016438,2]
[335290128,1724075441134,-500.0,0.00016438,2]
[335290129,1724075441144,-500.0,0.00016438,2]
[335290130,1724075441153,-500.0,0.00016438,2]
[335290131,1724075441163,-500.0,0.00016438,2]
[335290132,1724075441173,-500.0,0.00016438,2]
[335290133,1724075441182,-500.0,0.00016438,2]
[335290134,1724075441191,-500.0,0.00016438,2]
[335290135,1724075441201,-500.0,0.00016438,2]
[335290136,1724075441212,-504.76171667,0.00016438,2]
[335290137,1724075441221,-159.02458049,0.00016438,2]
[335290138,1724075441231,-501.7248077,0.00016438,2]
[335290139,1724075441240,-500.0,0.00016438,2]
[335290140,1724075441250,-500.0,0.00016438,2]
[335290141,1724075441260,-527.97468298,0.00016438,2]
[335290142,1724075441269,-500.0,0.00016438,2]
[335290143,1724075441279,-500.0,0.00016438,2]
[335290144,1724075441291,-500.0,0.00016438,2]
[335290145,1724075441303,-500.0,0.00016438,2]
[335290146,1724075441313,-500.0,0.00016438,2]
[335290147,1724075441323,-500.0,0.00016438,2]
[335290148,1724075441333,-500.0,0.00016438,2]
[335290149,1724075441343,-500.0,0.00016438,2]
[335290150,1724075441353,-500.0,0.00016438,2]
[335290151,1724075441362,-500.0,0.00016438,2]
[335290152,1724075441373,-510.47010333,0.00016438,2]
[335290153,1724075441383,-500.0,0.00016438,2]
[335290154,1724075441393,-584.3404547,0.00016438,2]
[335290155,1724075441402,-500.0,0.00016438,2]
[335290156,1724075441411,-500.0,0.00016438,2]
[335290157,1724075441422,-500.0,0.00016438,2]
[335290158,1724075441431,-500.0,0.00016438,2]
[335290159,1724075441441,-500.0,0.00016438,2]
[335290160,1724075441450,-500.0,0.00016438,2]
[335290161,1724075441461,-500.0,0.00016438,2]
[335290162,1724075441471,-500.0,0.00016438,2]
[335290163,1724075441481,-500.0,0.00016438,2]
[335290164,1724075441491,-500.0,0.00016438,2]
[335290165,1724075441501,-500.0,0.00016438,2]
[335290166,1724075441510,-500.0,0.00016438,2]
[335290167,1724075441520,-500.0,0.00016438,2]
[335290168,1724075441530,-511.22725887,0.00016438,2]
[335290169,1724075441539,-518.21978141,0.00016438,2]
[335290170,1724075441549,-500.0,0.00016438,2]
[335290171,1724075441559,-500.0,0.00016438,2]
[335290172,1724075441569,-500.0,0.00016438,2]
[335290173,1724075441578,-500.0,0.00016438,2]
[335290174,1724075441588,-500.0,0.00016438,2]
[335290175,1724075441597,-500.0,0.00016438,2]
[335290176,1724075441606,-500.0,0.00016438,2]
[335290177,1724075441616,-500.0,0.00016438,2]
[335290178,1724075441626,-527.06,0.00016438,2]
[335290179,1724075441635,-500.0,0.00016438,2]
[335290180,1724075441645,-500.0,0.00016438,2]
[335290181,1724075441655,-500.0,0.00016438,2]
[335290182,1724075441665,-500.0,0.00016438,2]
[335290183,1724075441676,-500.0,0.00016438,2]
[335290184,1724075441686,-500.0,0.00016438,2]
[335290185,1724075441695,-500.0,0.00016438,2]
[335290186,1724075441705,-503.16809955,0.00016438,2]
[335290187,1724075441715,-500.0,0.00016438,2]
[335290188,1724075441724,-500.0,0.00016438,2]
[335290189,1724075441734,-500.0,0.00016438,2]